bitfinex/quotes_ETHUSD_20230703
["timestamp","ask_amount","ask_price","bid_price","bid_amount"]
[1688388736098,10.17368,1965.9,1965.3,10.17635]
[1688388736797,12.71704,1965.9,1965.3,10.17635]
[1688388736956,7.50615282,1965.9,1965.3,10.17635]
[1688388738473,12.59296282,1965.9,1965.3,10.17635]
[1688388739073,12.59296282,1965.9,1965.3,11.45935]
[1688388739655,17.96496282,1965.9,1965.3,11.45935]
[1688388739863,23.06711098,1965.9,1965.3,10.17635]
[1688388740062,1.79649628,1965.8,1965.3,10.17635]
[1688388740260,6.88366628,1965.8,1965.3,10.17635]
[1688388742308,6.88366628,1965.8,1965.2,10.17704]
[1688388742856,11.97064628,1965.8,1965.2,10.17704]
[1688388743788,19.90143444,1965.8,1965.2,10.17704]
[1688388743957,19.90143444,1965.8,1965.2,5.08852]
[1688388743958,11.37175463,1965.7,1965.2,5.08852]
[1688388747009,13.91537463,1965.7,1965.2,5.08852]
[1688388751085,13.91537463,1965.7,1965.2,6.38352]
[1688388754107,13.91537463,1965.7,1965.2,5.08852]
[1688388760952,10.17469,1965.7,1965.2,5.08852]
[1688388761156,10.17469,1965.7,1965.2,11.47206]
[1688388762444,5.08724,1965.7,1965.3,6.38319]
[1688388762630,10.17427,1965.8,1965.3,11.47147]
[1688388763662,5.08683,1965.9,1965.3,12.73525816]
[1688388763961,5.08605,1966.2,1965.7,10.17444]
[1688388764195,5.08579,1966.3,1965.7,14.01306]
[1688388764352,5.08579,1966.3,1965.7,11.46944]
[1688388764555,1.65687582,1966.3,1965.7,11.46944]
[1688388764724,5.08558,1966.4,1965.7,10.17444]
[1688388764923,5.0857,1966.3,1965.8,1.295]
[1688388765156,5.0857,1966.3,1965.8,8.94064816]
[1688388765362,4.23836,1966.6,1965.8,12.73262816]
[1688388765652,10.17172,1966.3,1965.8,15.27611816]
[1688388766327,0.01673673,1966.5,1965.9,2.55878816]
[1688388766661,5.10191673,1966.5,1966.2,6.36975]
[1688388766846,10.18716673,1966.5,1966.2,6.36975]
[1688388767167,10.18716673,1966.5,1966.2,5.08575]
[1688388767378,14.0027114,1966.5,1966.0,9.388695]
[1688388767532,14.0027114,1966.5,1966.0,8.08622]
[1688388767938,14.0027114,1966.5,1966.0,13.17268]
[1688388769771,11.4601314,1966.5,1966.0,13.17268]
[1688388770681,10.18716673,1966.5,1966.0,15.71591]
[1688388772498,10.18716673,1966.5,1966.0,13.17268]
[1688388776551,10.18716673,1966.5,1966.0,8.08622]
[1688388778414,12.72974673,1966.5,1966.0,5.08622]
[1688388778698,14.02474673,1966.5,1965.8,3.0]
[1688388778904,10.1718,1966.3,1965.8,3.0]
[1688388779062,10.1718,1966.3,1965.8,0.41673089]
[1688388779264,12.71464,1966.3,1965.8,0.41673089]
[1688388779468,12.71464,1966.3,1965.6,9.95388]
[1688388779663,14.49289147,1966.3,1965.6,12.51266816]
[1688388780411,14.49289147,1966.3,1965.6,15.04138]
[1688388780553,14.49289147,1966.3,1965.7,3.0]
[1688388780902,14.49289147,1966.3,1965.7,8.08723]
[1688388782193,14.49289147,1966.3,1965.7,3.0]
[1688388785799,14.49289147,1966.3,1965.7,8.08722]
[1688388785996,14.49289147,1966.3,1965.7,3.0]
[1688388786295,1.0806252,1966.2,1965.7,3.0]
[1688388786503,12.71583,1966.1,1965.7,3.0]
[1688388787006,12.71583,1966.1,1965.7,5.08722]
[1688388789085,12.71583,1966.1,1965.6,15.47420393]
[1688388793124,12.71583,1966.1,1965.3,0.12887012]
[1688388793125,2.55878816,1966.0,1965.3,0.12887012]
[1688388793422,20.63302,1965.8,1965.0,1.9768]
[1688388793619,1.81313472,1965.7,1965.0,1.9768]
[1688388793832,10.17556,1965.5,1965.0,1.9768]
[1688388794124,11.447495,1965.5,1964.9,2.8135]
[1688388794308,11.447495,1965.5,1964.9,3.22497037]
[1688388794507,13.991375,1965.5,1964.9,3.22497037]
[1688388795513,13.991375,1965.5,1965.0,3.0]
[1688388799231,13.991375,1965.5,1964.9,1.94197037]
[1688388799441,1.3991375,1965.4,1964.9,3.41147037]
[1688388799605,12.72102,1965.3,1964.8,1.9768]
[1688388799796,12.72102,1965.3,1964.8,4.9768]
[1688388800437,12.72102,1965.3,1964.8,3.0]
[1688388800632,12.67102,1965.3,1964.8,3.0]
[1688388800926,12.67102,1965.3,1964.8,8.08956]
[1688388802032,12.67102,1965.3,1964.9,1.295]
[1688388805338,12.67102,1965.3,1964.8,4.69749382]
[1688388814579,12.67102,1965.3,1964.8,3.40249382]
[1688388814877,12.72212,1965.1,1964.7,3.0]
[1688388816983,12.72212,1965.1,1964.7,8.08979]
[1688388817153,12.72212,1965.1,1964.7,3.0]
[1688388819777,12.72212,1965.1,1964.6,1.70564398]
[1688388824593,1.9964,1965.4,1964.7,2.55878816]
[1688388824797,1.9964,1965.4,1964.9,1.291]
[1688388824995,5.08787,1965.5,1964.9,10.17833]
[1688388825299,5.08787,1965.5,1964.9,12.73711816]
[1688388825300,5.08779,1965.5,1964.9,12.73711816]
[1688388825600,10.17558,1965.5,1965.1,1.295]
[1688388826104,12.71946,1965.5,1965.1,1.295]
[1688388827178,5.08779,1965.5,1965.1,1.295]
[1688388828077,5.08779,1965.5,1965.0,5.08899]
[1688388828262,5.08779,1965.5,1965.0,6.38399]
[1688388830508,5.08779,1965.5,1965.0,11.47304]
[1688388831560,5.08779,1965.5,1965.0,10.17804]
[1688388831855,5.08779,1965.5,1965.0,11.47304]
[1688388832106,5.08779,1965.5,1965.0,6.38399]
[1688388833108,10.17558,1965.5,1965.0,6.38399]
[1688388833910,1.295,1965.8,1965.1,2.55878816]
[1688388834210,10.174,1965.8,1965.2,10.17683]
[1688388834507,10.174,1965.8,1965.2,14.03061816]
[1688388834664,10.17526,1965.6,1965.1,3.0]
[1688388834864,10.17526,1965.6,1965.0,4.6251]
[1688388835108,10.17526,1965.6,1965.1,3.0]
[1688388836267,12.22186,1965.6,1965.1,3.0]
[1688388837120,14.76561,1965.6,1965.1,3.0]
[1688388837413,11.652391,1965.5,1965.1,3.0]
[1688388841667,10.17583,1965.5,1965.1,3.0]
[1688388844332,5.08781,1965.5,1965.1,3.0]
[1688388845402,5.08781,1965.5,1965.1,8.08873]
[1688388845778,10.17562,1965.5,1965.1,3.0]
[1688388850521,10.17562,1965.5,1965.0,11.8869921]
[1688388850704,10.17562,1965.5,1964.8,1.8444]
[1688388850705,1.017562,1965.4,1964.8,1.8444]
[1688388850890,12.72118,1965.3,1964.8,1.8444]
[1688388851222,14.36548,1965.3,1964.8,1.8444]
[1688388851385,14.36548,1965.3,1964.8,6.93395]
[1688388851593,14.36548,1965.3,1964.7,7.91827]
[1688388851800,12.7223,1965.1,1964.6,11.47494]
[1688388852002,12.7223,1965.1,1964.7,5.48998772]
[1688388852213,12.7223,1965.1,1964.7,5.08978]
[1688388852828,12.7223,1965.1,1964.6,6.38495]
[1688388853002,14.1381848,1965.1,1964.5,3.23602703]
[1688388853204,17.7411848,1965.1,1964.5,0.12972703]
[1688388854021,17.7411848,1965.1,1964.4,1.82796509]
[1688388854022,5.0188848,1965.1,1964.4,1.82796509]
[1688388854175,5.0188848,1965.1,1964.5,0.8845194]
[1688388854176,0.50188848,1965.0,1964.5,0.8845194]
[1688388854376,12.7236,1964.9,1964.5,0.8845194]
[1688388854615,12.7236,1964.9,1964.5,3.0]
[1688388859074,0.50188848,1965.0,1964.5,3.0]
[1688388859248,10.17888,1964.9,1964.4,9.92623562]
[1688388859962,12.7236,1964.9,1964.4,9.92623562]
[1688388860683,14.04614885,1964.9,1964.4,4.83573562]
[1688388861368,14.04614885,1964.9,1964.4,9.92623562]
[1688388861868,14.04614885,1964.9,1964.4,4.83573562]
[1688388863785,14.04614885,1964.9,1964.4,3.41402698]
[1688388864085,14.04614885,1964.9,1964.4,0.41402698]
[1688388864385,12.7251,1964.7,1964.2,4.82696509]
[1688388864553,12.7251,1964.7,1964.3,0.88455856]
[1688388864748,12.7251,1964.7,1964.3,3.88455856]
[1688388865082,12.7251,1964.7,1964.3,3.0]
[1688388865580,12.7251,1964.7,1964.2,4.42216785]
[1688388865785,14.60293449,1964.7,1964.3,0.88460585]
[1688388865969,14.60293449,1964.7,1964.2,4.42216785]
[1688388866684,14.60293449,1964.7,1964.2,4.82851399]
[1688388866843,14.60293449,1964.7,1964.2,3.53451399]
[1688388867366,14.60293449,1964.7,1964.2,3.40634614]
[1688388867577,1.46029345,1964.6,1964.2,3.40634614]
[1688388867883,10.1808,1964.5,1964.2,0.40634614]
[1688388868085,10.1808,1964.5,1964.1,8.09131]
[1688388870341,6.667,1964.9,1964.1,8.09131]
[1688388870342,3.83957,1965.0,1964.2,2.55878816]
[1688388870575,3.8645,1965.2,1964.7,1.294]
[1688388870738,1.018858,1965.3,1964.7,10.19332816]
[1688388870739,11.195688,1965.3,1964.7,10.19332816]
[1688388870951,5.08861,1965.2,1964.7,15.28315816]
[1688388871555,10.17722,1965.2,1964.9,1.295]
[1688388871878,10.17722,1965.2,1964.9,6.3843]
[1688388872586,5.08861,1965.2,1964.9,6.3843]
[1688388877884,10.17715,1965.2,1964.9,6.3843]
[1688388878084,13.993549,1965.2,1964.9,6.3843]
[1688388880897,13.993549,1965.2,1964.8,5.08947]
[1688388881996,13.993549,1965.2,1964.8,5.50390778]
[1688388882196,13.993549,1965.2,1964.8,0.41443778]
[1688388882433,13.993549,1965.2,1964.7,10.76728816]
[1688388882739,13.993549,1965.2,1964.7,3.1188]
[1688388882945,1.3993549,1965.1,1964.7,3.1188]
[1688388883233,10.17822,1965.0,1964.7,3.1188]
[1688388883402,10.17822,1965.0,1964.7,1.295]
[1688388885044,10.17822,1965.0,1964.7,6.3848]
[1688388886103,10.17822,1965.0,1964.7,6.79134485]
[1688388888937,10.17822,1965.0,1964.7,1.70154485]
[1688388892330,10.17132,1966.4,1965.7,12.71756]
[1688388892556,11.80332,1966.4,1965.7,12.71756]
[1688388892958,11.82000167,1966.4,1965.7,12.71756]
[1688388893164,2.4863,1966.3,1965.7,12.71756]
[1688388893326,3.91693017,1966.3,1965.8,1.295]
[1688388893532,3.91693017,1966.3,1965.9,10.17329]
[1688388894441,14.08838017,1966.3,1965.6,8.08737]
[1688388894644,14.08838017,1966.3,1965.6,3.0]
[1688388894645,16.63122017,1966.3,1965.6,3.0]
[1688388894854,16.63122017,1966.3,1965.5,10.17523]
[1688388895067,1.66312202,1966.2,1965.5,5.08761]
[1688388895274,5.08649,1966.0,1965.6,3.0]
[1688388895583,5.08639,1966.1,1965.6,3.0]
[1688388895584,10.17282,1966.1,1965.6,3.0]
[1688388895729,5.08651,1966.0,1965.6,3.0]
[1688388895946,10.17274,1966.1,1965.6,5.08745]
[1688388896169,1.017274,1966.0,1965.6,5.08745]
[1688388896569,5.08635,1966.1,1965.6,5.08745]
[1688388897455,5.08635,1966.1,1965.6,10.17495]
[1688388897976,10.17267,1966.1,1965.6,10.17495]
[1688388898561,5.08632,1966.1,1965.6,10.17495]
[1688388898886,11.83520202,1966.2,1965.6,12.7187]
[1688388899040,6.2697402,1966.1,1965.6,12.7187]
[1688388899242,1.1835202,1966.1,1965.6,12.7187]
[1688388899857,6.2697402,1966.1,1965.6,12.7187]
[1688388900957,1.1835202,1966.1,1965.6,12.7187]
[1688388905450,3.91693017,1966.3,1965.6,14.0137]
[1688388905656,2.4863,1966.3,1965.8,12.71695]
[1688388906077,0.20588,1966.7,1966.1,12.71525]
[1688388906289,4.4699,1966.6,1966.1,12.71525]
[1688388906446,0.44699,1966.5,1966.1,12.71525]
[1688388906644,10.37533,1966.7,1966.2,2.55878816]
[1688388906645,5.29055,1966.7,1966.2,2.55878816]
[1688388906850,5.29055,1966.7,1966.1,14.00125]
[1688388906851,0.01668167,1966.4,1966.1,14.00125]
[1688388907138,0.01668167,1966.4,1966.1,12.71525]
[1688388907294,0.01668167,1966.4,1966.1,16.55803816]
[1688388907851,0.20588,1966.7,1966.1,16.55803816]
[1688388908101,1.485144,1966.7,1966.1,16.55803816]
[1688388908306,6.569804,1966.7,1966.1,16.55803816]
[1688388908968,0.01679179,1966.6,1966.1,16.55803816]
[1688388909183,0.01679179,1966.6,1966.1,16.57451074]
[1688388909893,0.01679179,1966.6,1966.1,12.73172258]
[1688388910048,10.18663179,1966.6,1966.1,10.1722]
[1688388910255,1.01866318,1966.5,1966.1,10.1722]
[1688388910711,10.17059,1966.5,1966.1,10.1722]
[1688388910964,0.01668167,1966.4,1966.1,12.7153]
[1688388915345,0.01668167,1966.4,1966.1,15.27408816]
[1688388915830,10.17011,1966.6,1966.1,15.27408816]
[1688388916945,0.01673673,1966.5,1966.1,15.27408816]
[1688388920710,5.10192673,1966.5,1966.1,15.27408816]
[1688388922067,0.01673673,1966.5,1966.2,2.55878816]
[1688388922332,0.01673673,1966.5,1966.3,12.71422]
[1688388922942,0.20588,1966.7,1966.4,3.0]
[1688388923497,0.20588,1966.7,1966.5,12.71292]
[1688388923855,0.01679179,1966.6,1966.5,12.71292]
[1688388926703,0.01679179,1966.6,1966.2,8.08589]
[1688388926704,5.10170179,1966.6,1966.2,8.08589]
[1688388926883,6.14093897,1966.6,1966.3,3.0]
[1688388927262,6.14093897,1966.6,1966.2,5.08589]
[1688388927604,8.46263897,1966.6,1966.2,5.08589]
[1688388927809,7.42340179,1966.6,1966.2,5.08589]
[1688388928699,12.50831179,1966.6,1966.2,5.08589]
[1688388928906,7.42340179,1966.6,1966.2,5.08589]
[1688388931497,7.42340179,1966.6,1966.2,10.17184]
[1688388931904,7.41317298,1966.6,1966.2,10.17184]
[1688388937832,7.41317298,1966.6,1966.2,12.71481]
[1688388940532,2.32826298,1966.6,1966.2,12.71481]
[1688388941510,0.00656298,1966.6,1966.3,2.55878816]
[1688388941829,0.00656298,1966.6,1966.4,17.00857]
[1688388942139,0.00656298,1966.6,1966.4,15.71357]
[1688388943104,0.00656298,1966.6,1966.4,19.56735816]
[1688388945233,0.00656298,1966.6,1966.4,19.58382823]
[1688388951910,0.00656298,1966.6,1966.4,8.08543]
[1688388952211,0.00656298,1966.6,1966.4,3.39729373]
[1688388952866,0.00656298,1966.6,1966.4,8.48268373]
[1688388954193,0.00656298,1966.6,1966.4,3.39729373]
[1688388954999,0.00656298,1966.6,1966.4,3.0]
[1688388956409,0.00656298,1966.6,1966.4,8.08543]
[1688388959900,0.00656298,1966.6,1966.4,3.0]
[1688388965289,0.00656298,1966.6,1966.4,8.08541]
[1688388965617,0.00656298,1966.6,1966.3,0.41043591]
[1688388965618,10.17640298,1966.6,1966.3,0.41043591]
[1688388965917,5.09147298,1966.6,1966.3,5.08566]
[1688388966072,10.17638298,1966.6,1966.3,5.08567]
[1688388966505,12.58698298,1966.6,1966.3,5.08567]
[1688388967916,14.12050228,1966.6,1966.3,5.08567]
[1688388968221,14.12050228,1966.6,1966.2,13.17157]
[1688388968423,16.15090228,1966.6,1966.2,13.17157]
[1688388968602,17.15983298,1966.6,1966.2,3.0]
[1688388968804,17.15983298,1966.6,1966.1,5.10254257]
[1688388969009,14.61738298,1966.6,1966.1,10.18861257]
[1688388969201,14.61738298,1966.6,1966.1,5.64244078]
[1688388969202,9.53247298,1966.6,1966.1,5.64244078]
[1688388969531,17.15983298,1966.6,1966.1,5.64244078]
[1688388969687,8.85588428,1966.6,1966.1,5.64258078]
[1688388969892,17.15983298,1966.6,1966.1,5.64258078]
[1688388972277,17.15983298,1966.6,1966.1,0.55637078]
[1688388976418,17.15983298,1966.6,1966.1,0.43190723]
[1688388979342,17.15983298,1966.6,1966.1,5.51808723]
[1688388980746,17.15983298,1966.6,1966.1,0.43190723]
[1688388980952,3.0109833,1966.5,1966.1,0.41543466]
[1688388981160,3.0109833,1966.5,1965.9,5.08672]
[1688388981161,12.7137,1966.4,1965.9,10.17333]
[1688388981458,12.7137,1966.4,1965.9,5.08661]
[1688388981747,12.7137,1966.4,1965.9,10.17333]
[1688388981933,2.31260806,1966.3,1965.9,10.17333]
[1688388982114,5.086,1966.2,1965.9,10.17333]
[1688388982518,5.086,1966.2,1965.9,12.71669]
[1688388982835,0.00647144,1966.1,1965.9,10.57767249]
[1688388983039,5.09282144,1966.1,1965.9,10.57767249]
[1688388985565,5.09282144,1966.1,1965.9,5.49095249]
[1688388986817,0.00647144,1966.1,1965.9,10.57767249]
[1688388987265,0.00647144,1966.1,1966.0,2.55878816]
[1688388987423,0.00647144,1966.1,1966.0,19.56593816]
[1688388987856,7.51415,1966.6,1966.0,19.51593816]
[1688388988019,12.59929,1966.6,1966.0,19.51593816]
[1688388988415,7.51415,1966.6,1966.0,19.51593816]
[1688388988859,0.00654467,1966.5,1966.0,19.51593816]
[1688388990721,5.09178467,1966.5,1966.0,19.51593816]
[1688388991119,10.17702467,1966.5,1966.0,19.51593816]
[1688388992599,5.09178467,1966.5,1966.0,19.51593816]
[1688388992721,12.71953467,1966.5,1966.0,18.22493816]
[1688388992922,14.24573514,1966.5,1966.0,18.22493816]
[1688388994065,5.08574,1966.3,1966.0,18.22493816]
[1688388994639,5.08574,1966.3,1966.0,15.68170816]
[1688388994851,0.00648975,1966.2,1966.0,15.68170816]
[1688388995731,0.00648975,1966.2,1966.0,13.17292]
[1688388995948,5.09243975,1966.2,1966.0,13.17292]
[1688388996952,0.00648975,1966.2,1966.0,13.17292]
[1688388998009,9.59306,1966.4,1966.0,13.17292]
[1688388998215,11.060891,1966.4,1966.0,13.17292]
[1688388999011,0.00650806,1966.3,1966.0,13.17292]
[1688388999365,0.00650806,1966.3,1966.0,15.71615]
[1688389002125,0.00650806,1966.3,1966.0,13.17292]
[1688389002618,0.00650806,1966.3,1965.9,5.50738674]
[1688389002783,0.60470197,1966.3,1965.9,8.0661749]
[1688389004585,0.60470197,1966.3,1965.9,0.42081674]
[1688389005446,5.69040197,1966.3,1965.9,0.42081674]
[1688389005647,10.77610197,1966.3,1965.9,0.42081674]
[1688389005804,10.77610197,1966.3,1965.9,0.40434249]
[1688389005999,1.0776102,1966.2,1965.9,0.40434249]
[1688389006233,6.1636002,1966.2,1965.8,8.21216519]
[1688389006558,8.0794002,1966.2,1965.8,8.21216519]
[1688389006844,5.09220806,1966.3,1965.8,15.85793335]
[1688389006996,0.00647144,1966.1,1965.8,15.85793335]
[1688389007201,0.00647144,1966.1,1965.8,10.77095335]
[1688389009356,0.00647144,1966.1,1965.8,11.1799199]
[1688389010062,5.08603,1966.2,1965.8,11.1799199]
[1688389013875,1.9158,1966.3,1965.8,20.1053899]
[1688389014165,1.49888,1966.7,1966.2,10.17184]
[1688389014166,5.08502,1966.6,1966.2,10.17184]
[1688389014366,9.53232,1966.6,1966.2,12.71481]
[1688389014574,0.20588,1966.7,1966.2,17.27359816]
[1688389014917,0.00904698,1966.6,1966.3,3.0]
[1688389015158,0.00904698,1966.6,1966.4,10.17079]
[1688389015964,0.20588,1966.7,1966.4,10.17079]
[1688389020333,5.29054,1966.7,1966.4,10.17079]
[1688389020547,14.399754,1966.7,1966.3,3.0]
[1688389020740,11.857434,1966.7,1966.3,13.17136]
[1688389022286,0.20588,1966.7,1966.3,13.17136]
[1688389025113,0.20588,1966.7,1966.3,15.7142]
[1688389025486,0.20588,1966.7,1966.3,16.13017354]
[1688389026205,0.20588,1966.7,1966.3,13.13017354]
[1688389033917,0.20588,1966.7,1966.4,2.55878816]
[1688389034120,0.20588,1966.7,1966.5,5.08517]
[1688389034285,0.20588,1966.7,1966.4,5.08531]
[1688389034487,0.20588,1966.7,1966.2,2.0]
[1688389034689,5.29058,1966.7,1966.2,12.73052816]
[1688389034890,0.20588,1966.7,1966.2,10.17174]
[1688389035091,1.9687,1966.6,1966.2,10.17174]
[1688389036384,1.9687,1966.6,1966.2,10.57439497]
[1688389038099,7.05364,1966.6,1966.2,10.57439497]
[1688389039955,7.05364,1966.6,1966.2,5.48844497]
[1688389040505,7.05364,1966.6,1966.2,10.57439497]
[1688389041205,7.05364,1966.6,1966.2,13.11736497]
[1688389043648,7.05364,1966.6,1966.2,15.67615313]
[1688389043945,10.37545,1966.7,1966.3,2.55878816]
[1688389044247,12.48285,1966.7,1966.4,10.17076]
[1688389044448,12.48285,1966.7,1966.4,12.72954816]
[1688389049228,2.31328,1966.7,1966.4,12.72954816]
[1688389049431,0.20588,1966.7,1966.4,12.74601823]
[1688389049659,0.20588,1966.7,1966.4,15.28872823]
[1688389049964,0.20588,1966.7,1966.6,14.71227]
[1688389050176,0.20588,1966.7,1966.6,21.17123716]
[1688389050379,0.20588,1966.7,1966.6,5.08491]
[1688389050870,0.20588,1966.7,1966.6,10.16982]
[1688389051048,0.20588,1966.7,1966.6,14.00727]
[1688389051769,5.29053,1966.7,1966.3,10.17112]
[1688389051919,5.29053,1966.7,1966.4,5.08528]
[1688389052445,0.20588,1966.7,1966.4,10.17071]
[1688389052614,0.20588,1966.7,1966.4,12.71342]
[1688389054095,5.29055,1966.7,1966.4,10.17071]
[1688389054240,11.343055,1966.7,1966.3,10.17114]
[1688389054440,7.14506,1966.6,1966.3,5.08556]
[1688389055839,7.14506,1966.6,1966.3,10.17112]
[1688389057684,2.06,1966.6,1966.3,10.17112]
[1688389058340,7.14494,1966.6,1966.3,10.17112]
[1688389059054,0.20588,1966.7,1966.3,15.27274816]
[1688389059236,0.20588,1966.7,1966.5,12.71292]
[1688389059439,0.20588,1966.7,1966.5,14.00792]
[1688389059681,0.20588,1966.7,1966.5,16.56670816]
[1688389060954,0.20588,1966.7,1966.5,12.71292]
[1688389061172,0.20588,1966.7,1966.5,5.08517]
[1688389061373,0.20588,1966.7,1966.4,10.17065]
[1688389061374,5.819567,1966.7,1966.4,10.17065]
[1688389061911,10.107767,1966.7,1966.4,10.17065]
[1688389062500,9.57873,1966.7,1966.4,10.17065]
[1688389062886,9.57873,1966.7,1966.4,5.08532]
[1688389063284,9.57873,1966.7,1966.4,10.17075]
[1688389063485,9.57873,1966.7,1966.4,5.08532]
[1688389064592,9.57873,1966.7,1966.3,5.08545]
[1688389064986,14.66338,1966.7,1966.3,10.17114]
[1688389067024,4.49408,1966.7,1966.3,10.17114]
[1688389069533,4.49408,1966.7,1966.3,12.71398]
[1688389074225,5.451929,1966.7,1966.3,10.17114]
[1688389074540,10.536709,1966.7,1966.3,5.08545]
[1688389074994,10.536709,1966.7,1966.2,10.58686859]
[1688389075199,10.536709,1966.7,1966.3,5.08566]
[1688389075504,10.536709,1966.7,1966.3,10.17135]
[1688389075505,5.451929,1966.7,1966.3,10.17135]
[1688389075830,5.451929,1966.7,1966.3,12.71419]
[1688389076324,10.536669,1966.7,1966.3,10.17135]
[1688389076529,5.451929,1966.7,1966.3,10.17135]
[1688389077038,10.536769,1966.7,1966.3,10.17135]
[1688389079032,15.621609,1966.7,1966.3,10.17135]
[1688389081238,15.621609,1966.7,1966.3,11.45435]
[1688389081439,14.66376,1966.7,1966.3,11.45435]
[1688389081736,14.66376,1966.7,1966.3,10.17135]
[1688389082290,14.66376,1966.7,1966.3,12.71419]
[1688389087156,9.57892,1966.7,1966.3,12.71419]
[1688389088750,14.66357,1966.7,1966.3,12.71419]
[1688389089050,16.384148,1966.7,1966.3,12.71419]
[1688389089357,11.299308,1966.7,1966.3,12.71419]
[1688389090224,16.383958,1966.7,1966.3,12.71419]
[1688389095282,14.66338,1966.7,1966.3,12.71419]
[1688389095955,9.57873,1966.7,1966.3,12.71419]
[1688389098977,9.57873,1966.7,1966.3,14.00519]
[1688389099391,9.57873,1966.7,1966.3,12.71419]
[1688389101482,14.66338,1966.7,1966.3,10.17135]
[1688389101790,1.466338,1966.6,1966.3,10.17135]
[1688389101963,14.66338,1966.7,1966.3,10.17135]
[1688389103492,14.66338,1966.7,1966.3,12.71419]
[1688389106522,14.66338,1966.7,1966.6,1.291]
[1688389106523,0.20588,1966.7,1966.6,1.291]
[1688389106808,0.20588,1966.7,1966.6,19.9882555]
[1688389106989,0.20588,1966.7,1966.6,25.51909037]
[1688389107304,0.20588,1966.7,1966.6,25.7845078]
[1688389107453,0.20588,1966.7,1966.6,26.31468482]
[1688389107802,0.20588,1966.7,1966.6,27.64033491]
[1688389108294,0.20588,1966.7,1966.6,26.31390559]
[1688389108802,0.20588,1966.7,1966.6,26.33037398]
[1688389112324,1.4762747,1967.0,1966.9,2.0]
[1688389112521,1.4762747,1967.0,1966.9,24.89534816]
[1688389112728,1.4762747,1967.0,1966.9,27.89534816]
[1688389113573,1.4762747,1967.0,1966.9,29.18634816]
[1688389117083,1.4762747,1967.0,1966.9,29.45408787]
[1688389118986,0.41045648,1967.0,1966.9,36.82608787]
[1688389119286,0.1,1967.4,1967.3,7.872]
[1688389119614,0.1,1967.5,1967.4,0.51]
[1688389119813,0.1,1967.5,1967.4,18.79236986]
[1688389119995,0.1,1967.5,1967.4,19.06010957]
[1688389120329,0.1,1968.2,1968.0,2.5]
[1688389120498,0.05,1968.1,1968.0,23.31914483]
[1688389120884,0.05,1968.1,1968.0,23.82914483]
[1688389121504,0.05,1968.1,1968.0,25.12414483]
[1688389121911,0.05,1968.1,1968.0,25.32745983]
[1688389122627,0.05,1968.1,1968.0,8.0813]
[1688389122956,0.05,1968.1,1968.0,13.1626]
[1688389123144,0.06114926,1968.1,1968.0,20.26203816]
[1688389123439,0.06114926,1968.1,1968.0,18.26203816]
[1688389123801,0.06114926,1968.1,1968.0,20.26203816]
[1688389124004,0.06114926,1968.1,1968.0,17.70325]
[1688389124005,0.06672389,1968.1,1968.0,17.70325]
[1688389125052,0.06672389,1968.1,1968.0,13.1626]
[1688389125209,0.06672389,1968.1,1968.0,3.0]
[1688389125406,0.06672389,1968.1,1967.9,3.0]
[1688389125407,0.59148628,1968.1,1967.9,3.0]
[1688389125606,0.59148628,1968.1,1967.9,8.08145]
[1688389125607,5.14781389,1968.1,1967.9,8.08145]
[1688389125910,0.06672389,1968.1,1967.9,3.0]
[1688389126307,5.14778389,1968.1,1967.8,3.0]
[1688389126821,0.06672389,1968.1,1967.8,3.0]
[1688389127024,5.14776389,1968.1,1967.8,3.0]
[1688389127550,11.26166828,1968.1,1967.8,3.0]
[1688389127852,13.80218828,1968.1,1967.7,3.0]
[1688389128053,13.80218828,1968.1,1967.7,3.01645918]
[1688389128257,13.80218828,1968.1,1967.7,0.01645918]
[1688389128458,13.80218828,1968.1,1967.6,5.0]
[1688389128749,13.80218828,1968.1,1967.6,3.39966224]
[1688389128951,13.20966828,1968.1,1967.6,8.48190224]
[1688389129361,1.32096683,1968.0,1967.6,8.48190224]
[1688389129574,6.40238683,1968.0,1967.6,5.48190224]
[1688389129750,0.48,1967.9,1967.3,5.08308]
[1688389129930,0.48,1967.9,1967.3,7.64180816]
[1688389129931,12.70494,1967.8,1967.3,7.64180816]
[1688389130263,0.48,1967.7,1967.3,10.16612]
[1688389130414,8.348514,1967.8,1967.3,12.70767]
[1688389130606,13.430534,1967.8,1967.3,12.70767]
[1688389130807,17.266434,1967.8,1967.0,1.57050917]
[1688389131049,10.16476,1967.6,1967.3,5.08309]
[1688389131251,10.16476,1967.6,1967.1,5.08354]
[1688389131252,13.851896,1967.6,1967.1,5.08354]
[1688389131434,13.401636,1967.6,1967.1,5.08354]
[1688389131637,13.401636,1967.6,1967.1,10.16716]
[1688389131953,13.401636,1967.6,1967.1,5.08354]
[1688389132162,13.401636,1967.6,1967.0,10.85624644]
[1688389132449,15.942796,1967.6,1967.0,8.3312746]
[1688389132648,15.942796,1967.6,1967.0,3.2475346]
[1688389133012,17.237796,1967.6,1967.0,5.2475346]
[1688389133208,17.237796,1967.6,1967.0,10.3313446]
[1688389133412,17.237796,1967.6,1967.0,15.4152246]
[1688389134263,15.942796,1967.6,1967.0,15.4152246]
[1688389134556,12.25566,1967.6,1967.0,17.9571646]
[1688389135423,12.25566,1967.6,1967.0,10.85643644]
[1688389135630,12.25566,1967.6,1967.0,0.68874644]
[1688389135631,1.293,1967.5,1967.0,0.68874644]
[1688389135832,12.70742,1967.4,1967.0,0.41323727]
[1688389136024,1.270742,1967.3,1966.9,5.0841]
[1688389136228,10.16678,1967.2,1966.9,5.0841]
[1688389136454,5.08337,1967.2,1966.9,10.16824]
[1688389137075,2.6002,1967.5,1966.9,10.16824]
[1688389137384,5.08327,1967.3,1966.9,12.71031]
[1688389140501,7.58884,1967.4,1966.9,12.71031]
[1688389140854,7.58884,1967.4,1966.9,12.72677587]
[1688389141467,7.10884,1967.4,1966.9,15.28556403]
[1688389144758,7.10884,1967.4,1966.9,15.26909816]
[1688389144759,12.1918,1967.4,1966.9,15.26909816]